bitfinex/quotes_SOLUSD_20220105
["timestamp","ask_amount","ask_price","bid_price","bid_amount"]
[1641364266973,0.08121775,169.37,169.36,33.38026154]
[1641364267173,0.08121775,169.37,169.36,31.9018]
[1641364267576,0.08121775,169.37,169.36,33.38026154]
[1641364269374,0.08121775,169.37,169.36,151.30709215]
[1641364269776,0.08121775,169.37,169.36,157.5602311]
[1641364270376,0.05991859,169.37,169.36,157.5602311]
[1641364270578,0.05991859,169.37,169.36,157.2354406]
[1641364271878,0.05991859,169.37,169.36,166.0873406]
[1641364274380,6.02024447,169.46,169.37,8.79148141]
[1641364274579,6.02024447,169.46,169.39,0.06]
[1641364274782,6.02024447,169.46,169.4,8.56]
[1641364274986,6.02024447,169.46,169.4,10.79846154]
[1641364275379,6.02024447,169.46,169.41,1.47846154]
[1641364275580,6.02024447,169.46,169.42,8.56]
[1641364275984,6.02024447,169.46,169.42,9.32]
[1641364276382,6.02024447,169.46,169.42,9.06]
[1641364276982,0.29646288,169.47,169.42,9.06]
[1641364276983,0.29646288,169.47,169.43,0.36662844]
[1641364277282,0.29646288,169.47,169.45,0.06]
[1641364277483,0.29646288,169.47,169.46,8.56]
[1641364277682,0.29646288,169.47,169.46,10.03846154]
[1641364277882,0.29646288,169.47,169.46,9.35197093]
[1641364279284,0.29646288,169.47,169.46,9.09197093]
[1641364280989,0.29646288,169.47,169.46,9.35197093]
[1641364281685,0.29646288,169.47,169.46,9.37197093]
[1641364283915,0.29646288,169.47,169.46,9.11197093]
[1641364284112,35.3269211,169.47,169.46,9.08]
[1641364284312,53.67415682,169.47,169.46,9.08]
[1641364285215,24.67415682,169.47,169.46,9.08]
[1641364285513,24.67415682,169.47,169.46,9.34]
[1641364286117,6.3269211,169.47,169.46,9.34]
[1641364286314,0.29646288,169.47,169.46,9.37197093]
[1641364286718,6.3269211,169.47,169.46,9.34]
[1641364292322,6.3269211,169.47,169.46,9.08]
[1641364293530,6.3269211,169.47,169.46,9.34]
[1641364297031,6.3269211,169.47,169.46,3.7]
[1641364297232,6.3269211,169.47,169.46,0.02]
[1641364297634,42.3269211,169.47,169.46,0.02]
[1641364299034,6.3269211,169.47,169.46,0.02]
[1641364299836,6.3269211,169.47,169.46,8.58]
[1641364300236,6.3269211,169.47,169.46,9.34]
[1641364300436,0.29646288,169.47,169.46,9.37197093]
[1641364312768,0.29646288,169.47,169.46,9.11197093]
[1641364314068,0.29646288,169.47,169.46,9.37197093]
[1641364317677,0.29646288,169.47,169.46,9.11197093]
[1641364319074,0.29646288,169.47,169.46,9.37197093]
[1641364319275,6.3269211,169.47,169.46,9.34]
[1641364321676,0.29646288,169.47,169.46,9.34]
[1641364322975,0.29646288,169.47,169.46,9.37197093]
[1641364330681,6.3269211,169.47,169.46,9.34]
[1641364332084,6.3269211,169.47,169.46,9.08]
[1641364333386,44.3269211,169.47,169.46,8.58]
[1641364334385,64.13624998,169.47,169.46,8.58]
[1641364334585,64.13624998,169.47,169.46,8.84]
[1641364334786,44.3269211,169.47,169.46,8.84]
[1641364335187,44.3269211,169.47,169.46,0.28]
[1641364335588,44.3269211,169.47,169.46,0.02]
[1641364338292,2.6980777,169.46,169.42,9.32]
[1641364339293,38.29646288,169.47,169.42,9.32]
[1641364340795,0.29646288,169.47,169.42,9.32]
[1641364344525,0.29646288,169.47,169.42,38.32701586]
[1641364348432,0.29646288,169.47,169.42,9.32]
[1641364349331,0.29646288,169.47,169.42,9.06]
[1641364350531,0.29646288,169.47,169.42,9.32]
[1641364353536,0.29646288,169.47,169.42,9.06]
[1641364354934,0.29646288,169.47,169.42,9.32]
[1641364357836,0.29646288,169.47,169.42,15.213]
[1641364359539,0.29646288,169.47,169.42,9.32]
[1641364378588,0.29646288,169.47,169.42,9.06]
[1641364380490,0.29646288,169.47,169.42,9.32]
[1641364389801,0.29646288,169.47,169.42,10.6877]
[1641364390404,0.29646288,169.47,169.42,33.9815]
[1641364402324,0.29646288,169.47,169.42,33.7215]
[1641364403547,0.29646288,169.47,169.42,33.9815]
[1641364406247,0.29646288,169.47,169.42,33.7215]
[1641364406848,0.29646288,169.47,169.42,32.3538]
[1641364407647,0.29646288,169.47,169.42,9.06]
[1641364408449,0.29646288,169.47,169.42,9.32]
[1641364432415,0.29646288,169.47,169.42,8.56]
[1641364433016,0.29646288,169.47,169.39,8.56]
[1641364434319,0.29646288,169.47,169.39,9.06]
[1641364435623,0.29646288,169.47,169.39,9.32]
[1641364439129,0.29646288,169.47,169.39,9.06]
[1641364440548,0.29646288,169.47,169.39,9.32]
[1641364459872,0.29646288,169.47,169.39,9.06]
[1641364460475,0.29646288,169.47,169.39,18.73406304]
[1641364460673,0.29646288,169.47,169.39,29.35610315]
[1641364461280,0.29646288,169.47,169.4,23.9906]
[1641364461477,0.29646288,169.47,169.41,34.59715023]
[1641364461877,0.29646288,169.47,169.41,35.35715023]
[1641364464480,0.29646288,169.47,169.41,9.32]
[1641364466604,0.29646288,169.47,169.41,9.38]
[1641364467203,0.29646288,169.47,169.41,10.85846154]
[1641364473711,0.29646288,169.47,169.41,10.59846154]
[1641364475214,0.29646288,169.47,169.41,10.85846154]
[1641364475414,0.29646288,169.47,169.41,10.59846154]
[1641364476818,0.29646288,169.47,169.41,10.85846154]
[1641364501078,0.29646288,169.47,169.41,9.12]
[1641364502277,0.29646288,169.47,169.41,9.38]
[1641364502481,0.29646288,169.47,169.41,8.88]
[1641364503776,0.29646288,169.47,169.41,9.38]
[1641364507379,0.29646288,169.47,169.41,10.85846154]
[1641364513216,0.29646288,169.47,169.41,21.48050165]
[1641364513421,0.29646288,169.47,169.43,106.98]
[1641364513618,0.29646288,169.47,169.44,115.6]
[1641364513815,0.29646288,169.47,169.45,23.48127093]
[1641364514015,0.29646288,169.47,169.46,134.59554416]
[1641364514215,0.29646288,169.47,169.46,160.28203038]
[1641364514415,0.29646288,169.47,169.46,162.52049192]
[1641364514916,1.248,169.57,169.46,136.8340057]
[1641364515115,1.248,169.57,169.47,24.5043]
[1641364515317,1.248,169.57,169.48,8.56]
[1641364515517,1.248,169.57,169.48,8.82]
[1641364515715,1.248,169.57,169.48,10.79846154]
[1641364516016,1.248,169.57,169.49,25.96088835]
[1641364516215,1.248,169.57,169.5,8.56]
[1641364516417,1.248,169.57,169.5,9.06]
[1641364516616,1.248,169.57,169.5,9.32]
[1641364516815,1.248,169.57,169.5,8.82]
[1641364518419,99.7773,169.6,169.5,10.29846154]
[1641364518616,1.286211,169.61,169.5,33.23296154]
[1641364518820,1.286211,169.61,169.51,1.2642]
[1641364519019,1.286211,169.61,169.52,8.56]
[1641364519320,1.286211,169.61,169.52,16.15346154]
[1641364519521,1.286211,169.61,169.53,1.47846154]
[1641364519522,0.045811,169.61,169.53,1.47846154]
[1641364519722,0.045811,169.61,169.54,8.56]
[1641364519921,0.045811,169.61,169.54,9.06]
[1641364520222,0.045811,169.61,169.54,10.79846154]
[1641364523024,0.045811,169.61,169.54,10.53846154]
[1641364524327,0.045811,169.61,169.54,10.79846154]
[1641364529835,0.045811,169.61,169.55,0.06]
[1641364530036,0.045811,169.61,169.56,8.56]
[1641364530235,0.045811,169.61,169.56,10.03846154]
[1641364530437,0.045811,169.61,169.56,17.98046154]
[1641364530741,0.045811,169.61,169.57,1.47846154]
[1641364530935,0.045811,169.61,169.57,1.7807]
[1641364531138,0.045811,169.61,169.58,8.56]
[1641364531543,0.045811,169.61,169.58,9.32]
[1641364533245,0.045811,169.61,169.58,8.56]
[1641364533643,0.045811,169.61,169.53,8.56]
[1641364534744,0.045811,169.61,169.53,9.06]
[1641364535145,0.045811,169.61,169.53,10.3708]
[1641364536447,0.045811,169.61,169.53,10.6308]
[1641364545184,0.045811,169.61,169.53,12.10926154]
[1641364547593,0.045811,169.61,169.54,23.5121]
[1641364547788,0.045811,169.61,169.54,32.0721]
[1641364547988,0.045811,169.61,169.55,1.47846154]
[1641364548389,0.045811,169.61,169.55,0.76]
[1641364548889,0.045811,169.61,169.55,0.26]
[1641364549088,0.045811,169.61,169.54,32.8321]
[1641364562335,0.045811,169.61,169.54,8.82]
[1641364563841,0.045811,169.61,169.54,9.32]
[1641364565939,0.045811,169.61,169.54,10.79846154]
[1641364571551,0.045811,169.61,169.55,26.80689773]
[1641364571845,0.045811,169.61,169.55,35.86689773]
[1641364572044,0.045811,169.61,169.56,1.47846154]
[1641364572547,0.045811,169.61,169.56,2.23846154]
[1641364572949,0.045811,169.61,169.57,1.47846154]
[1641364573148,0.045811,169.61,169.56,0.76]
[1641364573350,0.045811,169.61,169.55,9.32]
[1641364574152,0.045811,169.61,169.56,1.47846154]
[1641364574349,0.045811,169.61,169.56,1.97846154]
[1641364574551,0.045811,169.61,169.56,2.23846154]
[1641364577573,0.045811,169.61,169.56,0.76]
[1641364577774,0.045811,169.61,169.55,9.32]
[1641364578176,0.045811,169.61,169.55,10.79846154]
[1641364583482,0.045811,169.61,169.57,25.20239174]
[1641364583681,0.045811,169.61,169.58,8.56]
[1641364583882,0.045811,169.61,169.59,0.03197093]
[1641364584081,6.07626922,169.61,169.59,8.59197093]
[1641364584287,0.045811,169.61,169.59,8.59197093]
[1641364584482,0.045811,169.61,169.59,9.35197093]
[1641364584882,0.045811,169.61,169.59,9.09197093]
[1641364586185,0.045811,169.61,169.59,9.35197093]
[1641364590288,0.045811,169.61,169.59,18.14243247]
[1641364590501,0.045811,169.61,169.59,16.66397093]
[1641364590888,0.045811,169.61,169.6,1.47846154]
[1641364591090,0.045811,169.61,169.6,10.29846154]
[1641364591289,0.045811,169.61,169.6,10.79846154]
[1641364592190,0.045811,169.61,169.6,9.32]
[1641364592989,0.045811,169.61,169.6,10.79846154]
[1641364596996,0.045811,169.61,169.6,10.85846154]
[1641364597394,0.045811,169.61,169.6,10.59846154]
[1641364598798,0.045811,169.61,169.6,10.85846154]
[1641364607336,0.045811,169.61,169.6,10.59846154]
[1641364608538,0.045811,169.61,169.6,10.85846154]
[1641364614738,0.045811,169.61,169.6,8.62]
[1641364614739,2.24755459,169.61,169.6,8.62]
[1641364614942,6.07626922,169.61,169.6,8.62]
[1641364615542,0.045811,169.61,169.6,8.65197093]
[1641364615944,0.045811,169.61,169.6,9.15197093]
[1641364616142,0.045811,169.61,169.6,9.41197093]
[1641364628658,0.045811,169.61,169.6,9.15197093]
[1641364630060,0.045811,169.61,169.6,9.41197093]
[1641364635392,0.045811,169.61,169.6,15.60597093]
[1641364636392,0.045811,169.61,169.6,38.54267093]
[1641364636594,0.045811,169.61,169.6,40.02113247]
[1641364636993,0.045811,169.61,169.6,41.28533247]
[1641364641095,0.045811,169.61,169.6,50.12463247]
[1641364641295,0.045811,169.61,169.6,50.06463247]
[1641364644599,0.045811,169.61,169.6,41.22533247]
[1641364646301,0.045811,169.61,169.6,32.79287093]
[1641364646497,3.04604004,169.61,169.6,31.4967]
[1641364646698,3.04604004,169.61,169.6,8.56]
[1641364647299,0.045811,169.61,169.6,8.59197093]
[1641364648002,0.045811,169.61,169.6,8.85197093]
[1641364648904,0.045811,169.61,169.6,9.35197093]
[1641364659222,0.045811,169.61,169.6,10.83043247]
[1641364667152,0.045811,169.61,169.6,16.51243247]
[1641364668954,0.045811,169.61,169.6,16.25243247]
[1641364669354,0.045811,169.61,169.6,10.57043247]
[1641364670458,0.045811,169.61,169.6,10.83043247]
[1641364670655,0.045811,169.61,169.6,10.57043247]
[1641364672357,0.045811,169.61,169.6,10.83043247]
[1641364685977,0.045811,169.61,169.6,10.89043247]
[1641364688406,0.045811,169.61,169.6,10.63043247]
[1641364690306,0.045811,169.61,169.6,10.89043247]
[1641364716867,0.045811,169.61,169.6,34.15783247]
[1641364717769,0.045811,169.61,169.6,42.99723247]
[1641364718176,0.045811,169.61,169.6,53.61922047]
[1641364718671,0.045811,169.61,169.6,160.59922047]
[1641364720171,0.02,169.66,169.61,8.792689]
[1641364720373,1.014999,169.73,169.62,115.54]
[1641364720571,1.014999,169.73,169.63,24.9044]
[1641364720773,1.014999,169.73,169.64,8.56]
[1641364720971,1.014999,169.73,169.64,10.3521]
[1641364721171,1.014999,169.73,169.65,25.77902487]
[1641364721373,1.014999,169.73,169.66,8.56]
[1641364721574,1.014999,169.73,169.66,8.82]
[1641364721774,1.014999,169.73,169.66,10.79846154]
[1641364724078,1.014999,169.73,169.66,10.53846154]
[1641364724479,1.014999,169.73,169.66,9.06]
[1641364725411,1.014999,169.73,169.66,10.53846154]
[1641364725816,1.014999,169.73,169.66,9.06]
[1641364726017,1.014999,169.73,169.66,10.53846154]
[1641364726412,1.014999,169.73,169.67,102.10301128]
[1641364726612,1.014999,169.73,169.68,8.56]
[1641364726814,22.88385174,169.74,169.68,10.03846154]
[1641364727012,22.88385174,169.74,169.68,10.79846154]
[1641364728014,22.88385174,169.74,169.68,9.32]
[1641364731820,22.88385174,169.74,169.68,9.06]
[1641364732822,22.88385174,169.74,169.68,8.56]
[1641364733221,23.38385174,169.74,169.68,8.56]
[1641364734221,23.38385174,169.74,169.65,8.56]
[1641364734421,23.38385174,169.74,169.65,9.06]
[1641364734621,23.38385174,169.74,169.65,9.32]
[1641364735022,1.2799,169.73,169.65,9.32]
[1641364738926,1.7799,169.73,169.62,8.56]
[1641364739228,2.0399,169.73,169.62,8.56]
[1641364739925,2.0399,169.73,169.62,9.06]
[1641364740325,2.0399,169.73,169.62,9.32]
[1641364747334,2.0399,169.73,169.62,0.26]
[1641364747530,24.1818,169.72,169.59,8.56]
[1641364747730,24.1818,169.72,169.57,9.32]
[1641364748030,72.6675,169.71,169.57,8.82]
[1641364748230,72.6675,169.71,169.57,8.56]
[1641364748435,73.4275,169.71,169.57,8.56]
[1641364748632,2.3136924,169.69,169.57,8.56]
[1641364748832,2.8136924,169.69,169.57,8.56]
[1641364749036,11.6336924,169.69,169.53,19.181988]
[1641364749234,1.3082,169.68,169.53,19.681988]
[1641364749436,1.8082,169.68,169.53,19.681988]
[1641364749635,2.0682,169.68,169.53,19.681988]
[1641364749836,24.3557,169.67,169.53,19.681988]
[1641364750036,22.94701992,169.66,169.53,19.681988]
[1641364750236,22.7316,169.65,169.53,19.681988]
[1641364750438,23.2316,169.65,169.53,19.941988]
[1641364750637,23.4916,169.65,169.53,19.941988]
[1641364750839,2.63141327,169.63,169.53,19.941988]
[1641364751666,1.3429,169.62,169.53,19.941988]
[1641364756865,1.3429,169.62,169.53,9.32]
[1641364758765,1.3429,169.62,169.53,9.06]
[1641364759365,1.3429,169.62,169.53,8.56]
[1641364760067,1.3429,169.62,169.53,8.82]
[1641364760266,1.3429,169.62,169.53,9.32]
[1641364765674,1.3429,169.62,169.53,9.06]
[1641364766976,1.3429,169.62,169.53,9.32]
[1641364770680,2.63141327,169.63,169.53,19.941988]
[1641364770878,2.63141327,169.63,169.53,21.42044954]
[1641364771079,22.94701992,169.66,169.53,21.42044954]
[1641364771280,22.94701992,169.66,169.54,24.2766]
[1641364771478,22.94701992,169.66,169.56,29.50372532]
[1641364771678,22.94701992,169.66,169.57,8.56]
[1641364771879,22.94701992,169.66,169.57,9.06]
[1641364772079,22.94701992,169.66,169.57,9.32]
[1641364774081,24.30641992,169.66,169.57,9.32]
[1641364774781,24.30641992,169.66,169.57,10.6341]
[1641364775984,23.3698,169.65,169.57,10.6341]
[1641364803942,1.3594,169.66,169.57,10.6341]
[1641364804143,2.20441914,169.67,169.57,10.6341]
[1641364804341,2.20441914,169.67,169.58,24.162]
[1641364804545,2.20441914,169.67,169.59,8.56]
[1641364804943,2.20441914,169.67,169.59,9.32]
[1641364805745,2.20441914,169.67,169.59,10.606]
[1641364807151,27.11161914,169.67,169.59,10.606]
[1641364807347,27.11161914,169.67,169.59,10.346]
[1641364807547,28.41891914,169.67,169.59,9.06]
[1641364808950,28.41891914,169.67,169.59,9.32]
[1641364809351,28.41891914,169.67,169.59,9.06]
[1641364810551,28.41891914,169.67,169.59,9.32]
[1641364813151,3.51171914,169.67,169.59,9.32]
[1641364814158,26.48731914,169.67,169.59,9.32]
[1641364816364,26.98731914,169.67,169.59,9.32]
[1641364817864,26.48731914,169.67,169.59,9.32]
[1641364828997,26.98731914,169.67,169.59,8.82]
[1641364830199,26.48731914,169.67,169.59,8.82]
[1641364831000,26.48731914,169.67,169.59,9.32]
[1641364860355,26.48731914,169.67,169.59,9.06]
[1641364861655,26.48731914,169.67,169.59,9.32]
[1641364867466,26.48731914,169.67,169.59,8.82]
[1641364867664,26.48731914,169.67,169.59,8.56]
[1641364867865,26.48731914,169.67,169.56,9.9019]
[1641364868468,26.98731914,169.67,169.56,9.9019]
[1641364868667,27.24731914,169.67,169.56,9.9019]
[1641364868865,27.24731914,169.67,169.56,10.4019]
[1641364869668,27.15956015,169.67,169.56,10.4019]
[1641364870468,27.15956015,169.67,169.56,10.6619]
[1641364870666,27.15956015,169.67,169.56,10.4019]
[1641364871990,27.15956015,169.67,169.56,8.82]
[1641364872192,32.67056015,169.67,169.53,8.56]
[1641364872391,32.67056015,169.67,169.51,9.831]
[1641364872392,41.23056015,169.67,169.51,9.831]
[1641364872594,2.7899326,169.64,169.52,23.5043]
[1641364872991,3.5499326,169.64,169.52,23.5043]
[1641364873192,5.20140944,169.64,169.52,23.5043]
[1641364873394,1.2316,169.63,169.52,24.0043]
[1641364873593,1.4916,169.63,169.52,23.5043]
[1641364873794,1.4916,169.63,169.52,23.7643]
[1641364874994,1.4916,169.63,169.52,24.2643]
[1641364882110,1.2316,169.63,169.52,24.2643]
[1641364882309,1.2316,169.63,169.53,8.56]
[1641364882508,1.2316,169.63,169.53,8.82]
[1641364882710,1.2316,169.63,169.53,9.32]
[1641364882914,1.2316,169.63,169.54,23.3156]
[1641364883108,1.2316,169.63,169.54,24.8277]
[1641364883308,1.2316,169.63,169.54,25.3277]
[1641364884209,1.2316,169.63,169.54,51.23577524]
[1641364885009,1.2316,169.63,169.55,8.56]
[1641364885412,1.2316,169.63,169.56,24.6528]
[1641364885609,22.9756,169.67,169.56,24.6528]
[1641364885610,25.83412612,169.67,169.56,33.4728]
[1641364885810,1.304,169.66,169.57,1.2482]
[1641364886012,1.304,169.66,169.57,1.5082]
[1641364886212,1.304,169.66,169.57,2.0082]
[1641364886610,1.304,169.66,169.58,8.56]
[1641364887111,1.304,169.66,169.58,9.32]
[1641364888912,25.83412612,169.67,169.58,9.32]
[1641364891916,1.2502,169.66,169.58,9.32]
[1641364892624,25.83412612,169.67,169.58,9.32]
[1641364899057,1.3562,169.66,169.58,9.32]
[1641364899257,1.3562,169.66,169.58,8.82]
[1641364900559,1.3562,169.66,169.58,9.32]
[1641364908268,1.3562,169.66,169.58,8.56]
[1641364908473,1.8562,169.66,169.58,8.56]
[1641364908870,1.8562,169.66,169.53,22.7881]
[1641364908871,1.8562,169.66,169.54,8.56]
[1641364909070,80.1773,169.66,169.54,8.56]
[1641364909272,81.82877684,169.66,169.54,8.56]
[1641364909674,2.89969757,169.64,169.54,9.06]
[1641364909973,2.89969757,169.64,169.54,9.32]
[1641364910574,17.71121071,169.62,169.54,9.32]
[1641364918207,17.71121071,169.62,169.54,8.82]
[1641364918406,24.77421071,169.62,169.54,8.56]
[1641364918609,2.19037376,169.61,169.54,8.56]
[1641364919006,25.40777376,169.61,169.54,8.56]
[1641364919606,26.77327376,169.61,169.54,8.56]
[1641364919808,26.77327376,169.61,169.54,8.82]
[1641364923510,26.77327376,169.61,169.54,0.26]
[1641364923713,26.77327376,169.61,169.51,34.4603]
[1641364929819,26.77327376,169.61,169.51,34.2003]
[1641364930020,27.03327376,169.61,169.51,34.2003]
[1641364930619,26.77327376,169.61,169.51,34.2003]
[1641364931022,26.77327376,169.61,169.51,34.4603]
[1641364933622,27.03327376,169.61,169.51,34.2003]
[1641364934923,27.53327376,169.61,169.51,34.2003]
[1641364935122,27.53327376,169.61,169.51,34.4603]
[1641364935123,27.03327376,169.61,169.51,34.4603]
[1641364935330,26.77327376,169.61,169.51,34.4603]
[1641364949062,27.53327376,169.61,169.51,34.2003]
[1641364949262,27.27327376,169.61,169.51,34.2003]
[1641364949864,26.77327376,169.61,169.51,34.2003]
[1641364950265,26.77327376,169.61,169.51,34.4603]
[1641364957575,26.77327376,169.61,169.51,34.2003]
[1641364958981,26.77327376,169.61,169.51,34.4603]
[1641364965399,26.77327376,169.61,169.51,34.2003]
[1641364965698,27.03327376,169.61,169.51,34.2003]
[1641364966194,27.53327376,169.61,169.51,34.2003]
[1641364966997,27.53327376,169.61,169.51,34.4603]
[1641364967499,26.77327376,169.61,169.51,34.4603]
[1641364968303,27.03327376,169.61,169.51,34.4603]
[1641364968814,27.53327376,169.61,169.51,34.4603]
[1641364969313,27.27327376,169.61,169.51,34.4603]
[1641364970218,26.77327376,169.61,169.51,34.4603]
[1641364983533,26.77327376,169.61,169.51,34.2003]
[1641364985031,26.77327376,169.61,169.51,34.4603]
[1641364987564,26.77327376,169.61,169.51,34.2003]
[1641364989068,26.77327376,169.61,169.51,34.4603]
[1641364990167,24.5829,169.61,169.55,96.33532385]
[1641364990371,1.65147684,169.65,169.56,8.56]
[1641364990568,79.71257684,169.66,169.56,8.82]
[1641364990767,79.71257684,169.66,169.56,10.79846154]
[1641364991067,79.71257684,169.66,169.56,39.47422639]
[1641364991268,2.15097846,169.65,169.56,64.93152639]
[1641364991867,2.15097846,169.65,169.57,1.47846154]
[1641364992067,2.15097846,169.65,169.58,8.56]
[1641364992567,2.15097846,169.65,169.59,1.47846154]
[1641364992767,2.15097846,169.65,169.6,8.56]
[1641364992968,2.15097846,169.65,169.6,9.06]
[1641364993167,2.15097846,169.65,169.6,9.32]
[1641364995774,144.03055551,169.7,169.6,9.32]
[1641364995972,144.53055551,169.7,169.6,9.32]
[1641364996876,2.18391097,169.69,169.6,9.32]
[1641364997476,2.68391097,169.69,169.6,9.32]
[1641364998176,2.68391097,169.69,169.6,9.06]
[1641364999481,2.68391097,169.69,169.6,9.32]
[1641364999880,2.68391097,169.69,169.6,9.06]
[1641365000683,1.2518,169.68,169.6,9.06]
[1641365000882,1.7518,169.68,169.6,9.06]
[1641365001989,1.7518,169.68,169.6,9.32]
[1641365003291,1.2518,169.68,169.6,9.32]
[1641365003589,1.7518,169.68,169.6,9.32]
[1641365004889,1.2518,169.68,169.6,9.32]
[1641365005388,1.7518,169.68,169.6,9.32]
[1641365006322,1.7518,169.68,169.6,9.06]
[1641365006491,1.7518,169.68,169.6,10.53846154]
[1641365007292,1.7518,169.68,169.6,9.06]
[1641365007491,1.7518,169.68,169.6,9.32]
[1641365008690,1.2518,169.68,169.6,9.32]
[1641365008895,1.7518,169.68,169.6,9.32]
[1641365012398,1.2518,169.68,169.6,9.32]
[1641365013398,1.7518,169.68,169.6,9.32]
[1641365014024,1.2518,169.68,169.6,9.32]
[1641365014225,1.7518,169.68,169.6,9.32]
[1641365014627,1.2518,169.68,169.6,9.32]
[1641365014828,1.7518,169.68,169.6,9.32]
[1641365015327,1.2518,169.68,169.6,9.32]
[1641365015928,1.7518,169.68,169.6,9.32]
[1641365025639,1.2518,169.68,169.6,9.32]
[1641365025838,1.7518,169.68,169.6,9.32]
[1641365028740,1.2518,169.68,169.6,9.32]
[1641365028942,1.7518,169.68,169.6,0.5]
[1641365029142,1.5118,169.68,169.6,0.5]
[1641365029342,1.5118,169.68,169.57,9.06]
[1641365030346,2.0118,169.68,169.57,9.32]
[1641365032846,25.6424,169.68,169.57,9.32]
[1641365035857,25.6424,169.68,169.57,10.6119]
[1641365036762,25.3824,169.68,169.57,10.6119]
[1641365037563,25.3824,169.68,169.58,24.632]
[1641365038062,25.3824,169.68,169.58,25.392]
[1641365038063,25.6424,169.68,169.58,25.392]
[1641365039465,25.1424,169.68,169.58,25.392]
[1641365040094,25.1424,169.68,169.58,33.952]
[1641365040692,25.6424,169.68,169.58,33.952]
[1641365040894,25.1424,169.68,169.58,9.32]
[1641365042093,25.6424,169.68,169.58,9.32]
[1641365042693,25.1424,169.68,169.58,9.32]
[1641365042893,25.3824,169.68,169.58,9.32]
[1641365043698,24.8824,169.68,169.58,9.32]
[1641365044097,25.1424,169.68,169.58,9.32]
[1641365046201,24.8824,169.68,169.58,9.32]
[1641365046403,25.3824,169.68,169.58,9.32]
[1641365047505,25.6424,169.68,169.58,9.32]
[1641365053831,25.3824,169.68,169.58,9.32]
[1641365054030,24.8824,169.68,169.58,9.32]
[1641365054431,25.3824,169.68,169.58,9.32]
[1641365055430,25.6424,169.68,169.58,9.32]
[1641365055932,25.6424,169.68,169.58,9.06]
[1641365057535,25.6424,169.68,169.58,9.32]
[1641365067353,25.1424,169.68,169.58,9.32]
[1641365067853,25.6424,169.68,169.58,9.06]
[1641365068455,25.6424,169.68,169.58,8.56]
[1641365069056,27.29387684,169.68,169.58,8.56]
[1641365069258,27.29387684,169.68,169.58,8.82]
[1641365069861,27.29387684,169.68,169.58,9.32]
[1641365070083,27.03387684,169.68,169.58,9.32]
[1641365070460,26.53387684,169.68,169.58,9.32]
[1641365071365,27.03387684,169.68,169.58,8.82]
[1641365071560,27.29387684,169.68,169.58,9.32]
[1641365073160,25.6424,169.68,169.58,9.32]
[1641365075463,25.6424,169.68,169.58,8.82]
[1641365076765,27.29387684,169.68,169.58,8.82]
[1641365077366,27.29387684,169.68,169.58,9.32]
[1641365077767,27.29387684,169.68,169.58,8.82]
[1641365077967,27.29387684,169.68,169.58,9.32]
[1641365082882,27.29387684,169.68,169.58,8.82]
[1641365083380,25.6424,169.68,169.58,8.82]
[1641365084380,25.6424,169.68,169.58,8.56]
[1641365085798,25.6424,169.68,169.58,8.82]
[1641365085998,25.6424,169.68,169.58,9.32]
[1641365090203,25.3824,169.68,169.58,9.32]
[1641365092604,25.6424,169.68,169.58,9.32]
[1641365092903,25.6424,169.68,169.58,8.56]
[1641365093502,25.6424,169.68,169.58,8.82]
[1641365093702,25.6424,169.68,169.58,9.32]
[1641365096304,27.29387684,169.68,169.58,9.32]
[1641365096705,27.03387684,169.68,169.58,9.32]
[1641365098009,27.29387684,169.68,169.58,9.32]
[1641365100911,27.29387684,169.68,169.58,8.82]
[1641365101112,27.29387684,169.68,169.58,9.32]